bitfinex-derivatives/quotes_ETHF0:USTF0_20230701
["timestamp","ask_amount","ask_price","bid_price","bid_amount"]
[1688196154160,5.51804259,1918.3,1918.2,8.20769]
[1688196154666,5.51804259,1918.3,1918.2,8.30769]
[1688196156859,5.20517259,1918.3,1918.2,8.30769]
[1688196158166,4.91845624,1918.3,1918.2,8.30769]
[1688196162764,5.23131624,1918.3,1918.2,8.30769]
[1688196163866,4.91845624,1918.3,1918.2,8.30769]
[1688196166770,5.23131624,1918.3,1918.2,8.30769]
[1688196167571,4.91845624,1918.3,1918.2,8.30769]
[1688196171675,0.13515624,1918.3,1918.2,8.30769]
[1688196172074,5.54186,1918.5,1918.2,8.30769]
[1688196172278,5.54186,1918.5,1918.4,7.8948]
[1688196172467,5.54186,1918.5,1918.4,8.30765]
[1688196172974,5.54682152,1918.5,1918.4,8.30765]
[1688196174170,5.83353787,1918.5,1918.4,8.30765]
[1688196175973,5.83353787,1918.5,1918.4,8.20765]
[1688196176366,5.95952021,1918.5,1918.4,8.20765]
[1688196176676,5.95952021,1918.5,1918.4,8.30765]
[1688196176876,5.67280386,1918.5,1918.4,8.30765]
[1688196178471,5.35994386,1918.5,1918.4,8.30765]
[1688196180673,5.67278386,1918.5,1918.4,8.30765]
[1688196181079,5.67278386,1918.5,1918.4,8.72965289]
[1688196183779,5.35994386,1918.5,1918.4,8.72965289]
[1688196185172,5.95950021,1918.5,1918.4,8.72965289]
[1688196185375,5.95950021,1918.5,1918.4,8.62965289]
[1688196186268,10.75050021,1918.5,1918.2,3.2078]
[1688196186473,10.75050021,1918.5,1918.1,5.46922]
[1688196186474,0.104,1918.2,1918.1,4.9999]
[1688196186674,0.70360635,1918.2,1918.1,4.9999]
[1688196186879,5.95809047,1918.2,1918.0,3.99006]
[1688196187070,0.104,1918.1,1917.9,4.687]
[1688196187277,0.31292,1918.0,1917.9,4.687]
[1688196187581,1.16712047,1918.0,1917.9,4.687]
[1688196187778,1.16712047,1918.0,1917.9,5.40956518]
[1688196188179,1.27599073,1918.0,1917.9,5.40956518]
[1688196189984,6.52459073,1918.0,1917.9,5.40956518]
[1688196191384,6.52459073,1918.0,1917.9,5.57210473]
[1688196193580,6.42059073,1918.0,1917.9,5.57210473]
[1688196195496,6.42059073,1918.0,1917.9,5.67210473]
[1688196196377,6.42059073,1918.0,1917.9,5.57210473]
[1688196202893,11.17859073,1918.0,1917.9,0.57217473]
[1688196203090,12.11751572,1918.0,1917.9,0.57217473]
[1688196203491,12.11751572,1918.0,1917.9,0.16967285]
[1688196203696,17.11751572,1918.0,1917.7,0.00782126]
[1688196203894,11.52459073,1918.0,1917.9,0.0866588]
[1688196204095,17.15072797,1918.0,1917.7,0.00782126]
[1688196204397,4.687,1917.8,1917.7,0.00782126]
[1688196204596,5.95815047,1917.8,1917.7,0.00782126]
[1688196205193,5.96300319,1917.8,1917.7,0.00782126]
[1688196205694,5.96300319,1917.8,1917.7,0.32079126]
[1688196208597,0.88528684,1917.8,1917.7,5.10779126]
[1688196208900,0.31780272,1917.8,1917.7,5.10779126]
[1688196209702,0.60451907,1917.8,1917.7,5.00779126]
[1688196211202,0.60451907,1917.8,1917.7,5.07596503]
[1688196211399,0.60451907,1917.8,1917.7,5.17596503]
[1688196212106,0.60451907,1917.8,1917.7,0.48896503]
[1688196212700,0.60451907,1917.8,1917.7,0.38896503]
[1688196214006,0.60451907,1917.8,1917.7,0.48896503]
[1688196214299,0.31780272,1917.8,1917.7,0.48896503]
[1688196215306,0.60451907,1917.8,1917.7,0.48896503]
[1688196216504,0.60451907,1917.8,1917.7,0.38896503]
[1688196216701,0.60451907,1917.8,1917.7,3.59676503]
[1688196217202,0.60451907,1917.8,1917.7,3.28379503]
[1688196217402,5.29151907,1917.8,1917.7,3.28379503]
[1688196219808,5.29151907,1917.8,1917.7,2.17910659]
[1688196219997,5.29151907,1917.8,1917.6,0.31298]
[1688196220309,5.25227,1917.7,1917.6,0.31298]
[1688196221209,5.25708983,1917.7,1917.6,5.09998]
[1688196221404,0.31778983,1917.7,1917.6,5.09998]
[1688196223004,0.60450618,1917.7,1917.6,5.09998]
[1688196225308,0.31778983,1917.7,1917.6,5.09998]
[1688196229912,0.31778983,1917.7,1917.6,5.08078]
[1688196235914,0.60450618,1917.7,1917.6,5.08078]
[1688196238212,0.31778983,1917.7,1917.6,5.08078]
[1688196238714,0.60450618,1917.7,1917.6,5.08078]
[1688196240826,5.86130618,1917.7,1917.6,5.08078]
[1688196241025,5.57458983,1917.7,1917.6,5.08078]
[1688196244237,5.86130618,1917.7,1917.6,5.08078]
[1688196244436,10.74230618,1917.7,1917.6,5.08078]
[1688196244734,10.74230618,1917.7,1917.6,4.98078]
[1688196248631,10.45558983,1917.7,1917.6,5.08078]
[1688196257246,10.74230618,1917.7,1917.6,4.98078]
[1688196260548,10.74230618,1917.7,1917.6,5.08078]
[1688196260950,10.74230618,1917.7,1917.6,4.98078]
[1688196262152,15.42930618,1917.7,1917.5,3.93983374]
[1688196262344,5.93911724,1917.6,1917.5,3.62683374]
[1688196262550,5.93911724,1917.6,1917.5,3.79428459]
[1688196263252,5.94392607,1917.6,1917.5,3.79428459]
[1688196263653,5.94392607,1917.6,1917.5,4.10728459]
[1688196263853,5.94392607,1917.6,1917.5,3.79428459]
[1688196267857,5.94392607,1917.6,1917.5,4.10728459]
[1688196268649,5.94392607,1917.6,1916.9,0.93929]
[1688196268650,0.104,1917.3,1916.9,0.93929]
[1688196268856,4.687,1917.1,1916.9,0.78273]
[1688196269063,0.88056412,1917.1,1917.0,0.31308]
[1688196269255,5.53456412,1917.1,1917.0,0.31308]
[1688196269456,5.82128047,1917.1,1917.0,0.31308]
[1688196270456,5.82128047,1917.1,1916.9,1.19738324]
[1688196270654,5.00008,1917.0,1916.9,1.19738324]
[1688196271244,5.00008,1917.0,1916.9,0.41465324]
[1688196271451,10.27258,1917.0,1916.8,3.5209]
[1688196271644,0.28671635,1916.9,1916.8,3.5209]
[1688196271851,0.59981635,1916.9,1916.8,3.6209]
[1688196272054,0.59981635,1916.9,1916.8,8.3079]
[1688196272251,0.59981635,1916.9,1916.8,8.73271031]
[1688196272653,0.59981635,1916.9,1916.6,0.78274]
[1688196272855,4.687,1916.7,1916.1,0.31322]
[1688196273159,4.687,1916.4,1916.2,0.31321]
[1688196273361,0.3132,1916.3,1916.2,5.28051]
[1688196273854,0.3132,1916.3,1916.2,5.84799412]
[1688196275353,0.3132,1916.3,1916.2,13.74279412]
[1688196275556,0.783,1916.4,1916.2,13.74279412]
[1688196275756,0.783,1916.4,1916.3,5.00019]
[1688196276454,0.783,1916.4,1916.3,5.52891131]
[1688196277465,6.15562,1916.7,1916.3,5.52891131]
[1688196277657,0.93952,1916.7,1916.6,4.687]
[1688196277861,0.93952,1916.7,1916.6,5.00014]
[1688196278162,0.94427014,1916.7,1916.6,6.09666575]
[1688196278360,0.94427014,1916.7,1916.6,11.26766575]
[1688196278664,1.23098649,1916.7,1916.6,11.26766575]
[1688196278858,0.94427014,1916.7,1916.6,11.26766575]
[1688196280260,0.31788014,1916.7,1916.6,11.26766575]
[1688196280466,0.00475014,1916.7,1916.6,11.26766575]
[1688196280766,0.31309,1917.0,1916.6,14.47546575]
[1688196280966,0.31309,1917.0,1916.9,4.687]
[1688196281156,0.31309,1917.0,1916.9,5.0001]
[1688196281361,0.31309,1917.0,1916.9,5.9928087]
[1688196281761,0.31309,1917.0,1916.9,10.9948087]
[1688196282567,0.59980635,1917.0,1916.9,10.9948087]
[1688196283867,0.31309,1917.0,1916.9,10.9948087]
[1688196289264,0.31767758,1917.0,1916.9,10.9948087]
[1688196289669,0.60439393,1917.0,1916.9,10.9948087]
[1688196292073,0.60439393,1917.0,1916.9,6.3078087]
[1688196294875,0.60439393,1917.0,1916.9,6.72339417]
[1688196296478,8.46619393,1917.0,1916.9,0.42522458]
[1688196296678,8.46619393,1917.0,1916.8,0.31311]
[1688196296873,8.46619393,1917.0,1916.9,0.43016808]
[1688196297080,9.03367805,1917.0,1916.8,0.31311]
[1688196298986,9.03367805,1917.0,1916.8,0.73878837]
[1688196299187,9.03367805,1917.0,1916.8,0.31311]
[1688196300288,9.03367805,1917.0,1916.7,10.5981]
[1688196300481,7.8948,1916.8,1916.7,5.9111]
[1688196300681,9.06211047,1916.8,1916.7,5.9111]
[1688196301186,9.06668216,1916.8,1916.7,5.9111]
[1688196301890,9.06668216,1916.8,1916.7,6.33278502]
[1688196302092,9.06668216,1916.8,1916.7,0.42168502]
[1688196302392,9.06668216,1916.8,1916.6,0.31313]
[1688196302592,4.687,1916.7,1916.6,5.58073]
[1688196302789,5.00013,1916.7,1916.6,5.58073]
[1688196303184,5.00013,1916.7,1916.6,0.31313]
[1688196303379,5.00013,1916.7,1916.5,0.78281]
[1688196303587,3.49451635,1916.6,1916.5,0.78281]
[1688196303787,3.80766635,1916.6,1916.5,0.78281]
[1688196304593,4.37515047,1916.6,1916.5,0.78281]
[1688196305692,4.37515047,1916.6,1916.5,1.20887913]
[1688196306388,0.31315,1916.6,1916.5,1.20887913]
[1688196307685,3.80766635,1916.6,1916.5,0.42606913]
[1688196307881,3.80766635,1916.6,1916.5,0.73922913]
[1688196308084,3.81222601,1916.6,1916.5,0.31316]
[1688196308690,3.81222601,1916.6,1916.4,10.56303]
[1688196308884,3.81222601,1916.6,1916.4,5.46993]
[1688196309093,0.56748412,1916.5,1916.4,5.46993]
[1688196309291,0.88064412,1916.5,1916.4,5.46993]
[1688196309485,0.88064412,1916.5,1916.4,5.87789835]
[1688196310087,0.88519884,1916.5,1916.4,5.87789835]
[1688196311095,0.88519884,1916.5,1916.4,6.31649464]
[1688196312194,5.53919884,1916.5,1916.4,1.62949464]
[1688196315591,4.97171472,1916.5,1916.4,1.62949464]
[1688196316297,4.65855472,1916.5,1916.4,1.62949464]
[1688196316598,0.31771472,1916.5,1916.4,6.31649464]
[1688196319200,0.60443107,1916.5,1916.4,6.31649464]
[1688196320698,0.60443107,1916.5,1916.4,5.53356464]
[1688196320896,5.29143107,1916.5,1916.4,1.15974464]
[1688196328510,5.29143107,1916.5,1916.4,0.84656464]
[1688196328712,5.29143107,1916.5,1916.4,0.43859629]
[1688196328910,5.39543107,1916.5,1916.2,4.8004]
[1688196329108,7.8618,1916.3,1916.0,0.78309]
[1688196329310,4.687,1916.1,1916.0,0.78309]
[1688196329612,5.00023,1916.1,1916.0,1.2050104]
[1688196330204,5.0047454,1916.1,1916.0,6.2899104]
[1688196332115,5.00675454,1916.1,1916.0,6.2899104]
[1688196336122,8.21455454,1916.1,1916.0,6.2899104]
[1688196341327,8.21455454,1916.1,1916.0,6.88097651]
[1688196342231,8.21455454,1916.1,1916.0,1.01298651]
[1688196342430,8.21455454,1916.1,1916.0,1.32621651]
[1688196346636,8.31855454,1916.1,1916.0,1.01298651]
[1688196346835,8.31855454,1916.1,1916.0,0.70980309]
[1688196347235,9.25639636,1916.1,1915.8,0.31327]
[1688196347437,7.8948,1915.9,1915.8,0.31327]
[1688196347637,8.20805,1915.9,1915.8,0.31327]
[1688196348047,8.21456574,1915.9,1915.8,0.31327]
[1688196348240,13.50156574,1915.9,1915.8,0.31327]
[1688196348648,13.60556574,1915.9,1915.7,5.94984736]
[1688196348940,5.54120047,1915.8,1915.7,5.94984736]
[1688196349146,5.85447047,1915.8,1915.7,5.94984736]
[1688196350143,5.86097826,1915.8,1915.7,5.94984736]
[1688196353944,5.00677779,1915.8,1915.7,5.94984736]
[1688196354346,5.00677779,1915.8,1915.7,6.49075755]
[1688196354649,5.29349414,1915.8,1915.7,6.49075755]
[1688196356850,5.00677779,1915.8,1915.7,6.49075755]
[1688196357855,5.29349414,1915.8,1915.7,6.49075755]
[1688196358948,4.69350779,1915.8,1915.7,6.49075755]
[1688196359148,5.47016,1916.0,1915.7,11.17775755]
[1688196359345,5.47016,1916.0,1915.8,0.56748412]
[1688196359646,5.47016,1916.0,1915.9,0.70963056]
[1688196360049,5.76315121,1916.0,1915.9,0.70963056]
[1688196368455,5.47643486,1916.0,1915.9,0.70963056]
[1688196368855,0.78943486,1916.0,1915.9,0.70963056]
[1688196371263,0.78943486,1916.0,1915.9,1.136225]
[1688196375067,1.07615121,1916.0,1915.9,1.136225]
[1688196375660,0.78943486,1916.0,1915.9,1.136225]
[1688196378468,0.00627486,1916.0,1915.9,1.136225]
[1688196378670,0.00627486,1916.0,1915.9,4.344025]
[1688196378864,0.31951486,1916.0,1915.9,4.344025]
[1688196379059,0.31951486,1916.0,1915.9,1.136225]
[1688196382069,0.31951486,1916.0,1915.9,5.823225]
[1688196386970,5.40723121,1916.0,1915.9,5.823225]
[1688196387674,10.09423121,1916.0,1915.9,1.136225]
[1688196389067,0.00627486,1916.0,1915.9,5.823225]
[1688196390665,6.20025355,1916.3,1916.0,0.56748412]
[1688196390867,0.3132,1916.4,1916.1,5.00022]
[1688196390868,4.96717,1916.4,1916.1,5.00022]
[1688196391077,0.00557032,1916.2,1916.1,5.19056448]
[1688196391273,0.00557032,1916.2,1916.1,5.7580486]
[1688196392676,0.31878032,1916.2,1916.1,5.7580486]
[1688196394675,0.00557032,1916.2,1916.1,5.7580486]
[1688196395781,0.00557032,1916.2,1916.1,5.8510066]
[1688196399786,0.00557032,1916.2,1916.1,9.0588066]
[1688196401177,0.00557032,1916.2,1916.1,9.47694217]
[1688196426007,0.10957032,1916.2,1916.1,9.47694217]
[1688196426402,0.10957032,1916.2,1916.1,8.90945805]
[1688196426403,0.70949667,1916.2,1916.1,8.90945805]
[1688196426804,5.92569667,1916.2,1916.1,8.90945805]
[1688196427204,5.63898032,1916.2,1916.1,8.90945805]
[1688196428407,5.22177032,1916.2,1916.1,8.90945805]
[1688196428606,5.53498032,1916.2,1916.1,8.90945805]
[1688196428806,5.22177032,1916.2,1916.1,8.90945805]
[1688196435112,0.00557032,1916.2,1916.1,8.90945805]
[1688196437210,6.89933059,1916.6,1916.2,0.56748412]
[1688196437211,5.95978059,1916.6,1916.2,0.56748412]
[1688196437507,4.12359821,1916.5,1916.3,3.59393965]
[1688196437709,4.43675821,1916.5,1916.4,4.687]
[1688196437909,4.43675821,1916.5,1916.4,5.00017]
[1688196438212,4.44152831,1916.5,1916.4,5.00017]
[1688196440816,4.72824466,1916.5,1916.4,5.00017]
[1688196442718,4.44152831,1916.5,1916.4,5.00017]
[1688196443015,4.44152831,1916.5,1916.4,5.4164565]
[1688196444018,4.44152831,1916.5,1916.4,5.98394062]
[1688196444614,4.44152831,1916.5,1916.4,11.10854062]
[1688196446118,4.44152831,1916.5,1916.4,11.22338705]
[1688196446721,4.12836831,1916.5,1916.4,11.22338705]
[1688196454224,4.44152831,1916.5,1916.4,11.22338705]
[1688196454419,4.72824466,1916.5,1916.4,10.65590293]
[1688196455223,4.44152831,1916.5,1916.4,10.65590293]
[1688196461224,4.12836831,1916.5,1916.4,10.65590293]
[1688196468533,4.44152831,1916.5,1916.4,10.65590293]
[1688196470331,4.72824466,1916.5,1916.4,10.65590293]
[1688196470933,4.44152831,1916.5,1916.4,10.65590293]
[1688196472537,4.12836831,1916.5,1916.4,10.65590293]
[1688196475542,4.44152831,1916.5,1916.4,10.65590293]
[1688196482842,4.72824466,1916.5,1916.4,10.65590293]
[1688196483140,4.44152831,1916.5,1916.4,10.65590293]
[1688196486941,4.72824466,1916.5,1916.4,10.65590293]
[1688196492948,4.44152831,1916.5,1916.4,10.65590293]
[1688196493139,4.12836831,1916.5,1916.4,10.65590293]
[1688196501760,4.44152831,1916.5,1916.4,10.65590293]
[1688196503962,0.0047701,1916.5,1916.4,10.65590293]
[1688196504564,0.3179301,1916.5,1916.4,10.65590293]
[1688196518675,0.0047701,1916.5,1916.4,10.65590293]
[1688196525878,0.3179301,1916.5,1916.4,10.65590293]
[1688196529479,0.60464645,1916.5,1916.4,10.65590293]
[1688196532278,0.3179301,1916.5,1916.4,10.65590293]
[1688196533279,0.60464645,1916.5,1916.4,10.65590293]
[1688196535377,0.3179301,1916.5,1916.4,10.65590293]
[1688196538482,0.60464645,1916.5,1916.4,10.65590293]
[1688196541686,0.3179301,1916.5,1916.4,10.65590293]
[1688196541882,0.05904059,1916.7,1916.4,15.34290293]
[1688196542086,3.3118,1917.1,1916.4,15.34290293]
[1688196542087,7.6137035,1917.1,1916.6,12.5588]
[1688196542382,7.6137035,1917.1,1917.0,4.687]
[1688196542593,7.90041985,1917.1,1917.0,0.31307]
[1688196543387,7.90495013,1917.1,1917.0,0.31307]
[1688196544185,7.90495013,1917.1,1916.9,5.46969]
[1688196544384,0.56748412,1917.0,1916.9,5.46971]
[1688196544588,0.88056412,1917.0,1916.9,5.46971]
[1688196544884,0.31308,1917.0,1916.9,5.46971]
[1688196545390,0.31759164,1917.0,1916.9,5.46971]
[1688196550291,0.31759164,1917.0,1916.9,10.71341]
[1688196551290,0.31759164,1917.0,1916.9,11.28089412]
[1688196554396,0.31759164,1917.0,1916.9,11.69344633]
[1688196556602,5.36230799,1917.0,1916.9,6.43896221]
[1688196557899,0.60430799,1917.0,1916.9,6.43896221]
[1688196558101,0.31759164,1917.0,1916.9,11.12596221]
[1688196564698,0.00451164,1917.0,1916.9,11.12596221]
[1688196565003,0.31759164,1917.0,1916.9,11.12596221]
[1688196572303,5.81568399,1917.2,1916.9,15.91248086]
[1688196572505,5.19015623,1917.2,1917.1,4.687]
[1688196572708,5.19015623,1917.2,1917.1,5.00006]
[1688196573310,5.19450931,1917.2,1917.1,10.08176]
[1688196578627,0.00435308,1917.2,1917.1,10.08176]
[1688196578919,1.72115776,1917.5,1917.2,0.56748412]
[1688196579126,0.7248228,1917.4,1917.2,0.56748412]
[1688196579330,0.7248228,1917.4,1917.3,4.687]
[1688196579529,0.7248228,1917.4,1917.3,5.00003]
[1688196579829,0.7248228,1917.4,1917.3,10.24583]
[1688196580219,0.72902579,1917.4,1917.3,10.24583]
[1688196583126,3.93682579,1917.4,1917.3,5.00003]
[1688196583321,4.3365067,1917.4,1917.3,4.687]
[1688196583522,4.4405067,1917.4,1917.3,4.687]
[1688196584727,4.4405067,1917.4,1917.3,5.00003]
[1688196586721,4.4405067,1917.4,1917.3,4.687]
[1688196587734,4.4405067,1917.4,1917.3,5.09664787]
[1688196589826,4.4405067,1917.4,1917.3,5.40967787]
[1688196592236,4.4405067,1917.4,1917.3,0.72267787]
[1688196595739,4.4405067,1917.4,1917.3,0.40964787]
[1688196596037,4.4405067,1917.4,1917.2,5.0078633]
[1688196597946,4.4405067,1917.4,1917.2,10.36595214]
[1688196603450,4.3365067,1917.4,1917.2,10.36595214]
[1688196604346,4.687,1917.3,1917.2,5.36591214]
[1688196604550,5.00003,1917.3,1917.2,5.36591214]
[1688196605048,10.00173,1917.3,1917.2,5.36591214]
[1688196605753,10.00173,1917.3,1917.2,0.41981214]
[1688196606047,11.91852503,1917.3,1917.2,0.41981214]
[1688196606247,12.85710279,1917.3,1917.2,0.41981214]
[1688196614555,12.85710279,1917.3,1917.2,5.38381214]
[1688196615452,12.96110279,1917.3,1917.2,5.38381214]
[1688196615755,12.92810279,1917.3,1917.2,5.38381214]
[1688196615954,12.82410279,1917.3,1917.2,5.38381214]
[1688196618157,12.92810279,1917.3,1917.2,0.00225298]
[1688196618358,17.83330279,1917.3,1917.2,0.00225298]
[1688196622255,17.83750235,1917.3,1917.2,0.00225298]
[1688196622850,17.73350235,1917.3,1917.2,0.00225298]
[1688196625263,12.82830235,1917.3,1917.2,0.00225298]
[1688196626859,13.24889995,1917.3,1917.2,0.00225298]
[1688196628067,12.82830235,1917.3,1917.2,0.00225298]
[1688196636070,7.82660235,1917.3,1917.2,0.00225298]
[1688196636263,2.23402459,1917.3,1917.2,0.31529298]
[1688196636873,2.23402459,1917.3,1917.2,5.49499298]
[1688196643376,2.23402459,1917.3,1917.2,10.58949175]
[1688196643573,2.28288057,1917.3,1917.2,10.58949175]
[1688196643779,1.73918057,1917.3,1917.2,10.58949175]
[1688196643974,2.12690401,1917.3,1917.2,10.58949175]
[1688196654890,2.12690401,1917.3,1917.2,13.79729175]
[1688196654891,1.81387401,1917.3,1917.2,13.79729175]
[1688196659186,1.40487402,1917.3,1917.2,13.79729175]
[1688196661095,1.40487402,1917.3,1917.2,15.3776993]
[1688196663595,1.15187402,1917.3,1917.2,15.3776993]
[1688196663795,1.50778557,1917.3,1917.2,15.3776993]
[1688196664795,0.7903433,1917.5,1917.2,20.0646993]
[1688196664796,0.0078233,1917.5,1917.2,20.0646993]
[1688196664997,0.0078233,1917.5,1917.4,12.5818]
[1688196665211,6.0925,1917.7,1917.4,12.89481]
[1688196665498,6.0925,1917.7,1917.6,4.99997]
[1688196665704,6.0925,1917.7,1917.6,5.56745412]
[1688196666198,6.50023694,1917.7,1917.6,5.56745412]
[1688196670395,5.56123694,1917.7,1917.6,5.56745412]
[1688196670793,5.69906338,1917.7,1917.6,5.56745412]
[1688196672493,6.01202338,1917.7,1917.6,5.56745412]
[1688196673501,6.01587119,1917.7,1917.6,5.56745412]
[1688196673699,5.70291119,1917.7,1917.6,5.56745412]
[1688196673903,5.70291119,1917.7,1917.6,4.46277761]
[1688196674297,6.01587119,1917.7,1917.6,4.46277761]
[1688196678598,6.01587119,1917.7,1917.6,4.88874984]
[1688196694918,6.30258754,1917.7,1917.6,4.32126572]
[1688196695719,6.01587119,1917.7,1917.6,4.32126572]
[1688196700710,5.70291119,1917.7,1917.6,4.32126572]
[1688196704928,6.01587119,1917.7,1917.6,4.32126572]
[1688196709534,4.91178769,1917.7,1917.6,4.32126572]
[1688196709737,4.61855769,1917.7,1917.6,4.32126572]
[1688196710236,4.50750769,1917.7,1917.6,4.32126572]
[1688196710937,4.82046769,1917.7,1917.6,4.32126572]
[1688196720945,4.50750769,1917.7,1917.6,4.32126572]
[1688196723245,0.54941119,1917.7,1917.6,7.52906572]
[1688196723848,0.54941119,1917.7,1917.6,6.17648039]
[1688196732257,0.86237119,1917.7,1917.6,6.17648039]
[1688196740860,0.86237119,1917.7,1917.6,2.96868039]
[1688196741262,0.44848237,1917.7,1917.6,2.96868039]
[1688196741462,0.76209956,1917.7,1917.6,2.96868039]
[1688196752573,0.71777317,1917.7,1917.6,2.96868039]
[1688196754673,0.40481317,1917.7,1917.6,2.96868039]
[1688196758779,0.71777317,1917.7,1917.6,2.96868039]
[1688196759979,0.29961764,1917.7,1917.6,2.96868039]
[1688196760279,0.63694651,1917.7,1917.6,2.96868039]
[1688196761677,0.33732887,1917.7,1917.6,2.96868039]
[1688196769283,0.00782207,1917.8,1917.6,2.96868039]
[1688196769483,0.00782207,1917.8,1917.7,8.46228412]
[1688196769682,0.00782207,1917.8,1917.7,13.74274412]
[1688196771995,0.187105,1917.8,1917.7,13.74274412]
[1688196778405,4.889504,1917.9,1917.7,13.74274412]
[1688196778600,4.889504,1917.9,1917.8,4.687]
[1688196778800,4.889504,1917.9,1917.8,4.99994]
[1688196779192,4.474344,1917.9,1917.8,4.99994]
[1688196779399,4.47724146,1917.9,1917.8,4.99994]
[1688196779799,4.06724146,1917.9,1917.8,4.99994]
[1688196785406,3.65024146,1917.9,1917.8,4.99994]
[1688196786100,3.78659845,1917.9,1917.8,4.99994]
[1688196791809,3.78659845,1917.9,1917.8,5.42341107]
[1688196792910,3.78659845,1917.9,1917.8,6.98013355]
[1688196793911,3.68759845,1917.9,1917.8,6.98013355]
[1688196794711,3.44159845,1917.9,1917.8,6.98013355]
[1688196795912,3.37459845,1917.9,1917.8,6.98013355]
[1688196797812,2.96459845,1917.9,1917.8,6.98013355]
[1688196798811,2.90113845,1917.9,1917.8,6.98013355]
[1688196799008,2.55235845,1917.9,1917.8,6.98013355]
[1688196799817,2.33435845,1917.9,1917.8,6.98013355]
[1688196801021,2.19135845,1917.9,1917.8,6.98013355]
[1688196801318,0.31581527,1918.0,1917.8,6.98013355]
[1688196801518,0.31581527,1918.0,1917.9,5.25448412]
[1688196801717,0.31581527,1918.0,1917.9,5.56741412]
[1688196803219,0.31581527,1918.0,1917.9,10.84351412]
[1688196804217,0.00290527,1918.0,1917.9,10.84351412]
[1688196804616,0.16501952,1918.0,1917.9,10.84351412]
[1688196805321,0.16767563,1918.0,1917.9,10.84351412]
[1688196811127,4.98757563,1918.1,1918.0,4.687]
[1688196811428,4.98757563,1918.1,1918.0,9.68691]
[1688196816736,4.67963523,1918.1,1918.0,9.68691]
[1688196817738,4.99252523,1918.1,1918.0,9.68691]
[1688196818035,4.72217358,1918.1,1918.0,9.68691]
[1688196818538,4.64013698,1918.1,1918.0,9.68691]
[1688196818741,4.76329137,1918.1,1918.0,9.68691]
[1688196819237,5.05000772,1918.1,1918.0,9.68691]
[1688196819537,5.05000772,1918.1,1918.0,4.99991]
[1688196823041,4.76329137,1918.1,1918.0,4.99991]
[1688196824544,4.76329137,1918.1,1918.0,5.41425577]
[1688196825647,4.70238667,1918.1,1918.0,5.41425577]
[1688196826541,4.98910302,1918.1,1918.0,5.41425577]
[1688196828954,4.70238667,1918.1,1918.0,5.41425577]
[1688196829541,4.98910302,1918.1,1918.0,5.41425577]
[1688196831447,4.9090223,1918.1,1918.0,5.41425577]
[1688196833853,4.62230595,1918.1,1918.0,5.41425577]
[1688196834159,4.53301697,1918.1,1918.0,5.41425577]
[1688196834451,4.53301697,1918.1,1918.0,10.47715577]
[1688196837755,0.12315439,1918.1,1918.0,10.47715577]
[1688196838255,0.09280733,1918.1,1918.0,10.47715577]
[1688196838560,0.75938439,1918.2,1918.0,15.70863989]
[1688196838754,9.63903704,1918.3,1918.1,4.687]
[1688196838755,6.43123704,1918.3,1918.1,4.687]
[1688196838959,5.49209,1918.3,1918.2,4.99989]
[1688196839253,5.49209,1918.3,1918.2,5.56737412]
[1688196843958,5.49209,1918.3,1918.2,3.7016945]
[1688196844265,5.77880635,1918.3,1918.2,3.44710038]
[1688196844667,5.49209,1918.3,1918.2,3.44710038]
[1688196845967,5.77880635,1918.3,1918.2,3.44710038]
[1688196847173,5.49209,1918.3,1918.2,3.44710038]
[1688196847361,5.49209,1918.3,1918.2,8.26490038]
[1688196850469,5.77880635,1918.3,1918.2,8.26490038]
[1688196850772,5.49209,1918.3,1918.2,8.26490038]
[1688196851874,5.77880635,1918.3,1918.2,8.68782663]
[1688196852074,8.98660635,1918.3,1918.2,8.37493663]
[1688196852376,9.92575339,1918.3,1918.2,0.42292625]
[1688196852760,14.61275339,1918.3,1917.9,4.99993]
[1688196852961,3.2078,1918.1,1917.9,4.99993]
[1688196853167,0.59963635,1918.0,1917.9,4.99993]
[1688196853365,0.69385106,1918.0,1917.9,4.99993]
[1688196863976,0.69385106,1918.0,1917.9,4.687]
[1688196864172,0.69385106,1918.0,1917.9,4.99994]
[1688196866680,5.38085106,1918.0,1917.8,10.04261507]
[1688196866882,3.2078,1917.9,1917.8,5.11331507]
[1688196867083,3.61503354,1917.9,1917.8,5.11331507]
[1688196870181,3.61503354,1917.9,1917.8,5.42626507]
[1688196877291,3.61503354,1917.9,1917.8,10.47156507]
[1688196886697,3.61503354,1917.9,1917.8,10.15861507]
[1688196888802,3.61503354,1917.9,1917.8,10.47156507]
[1688196908502,0.50185001,1918.0,1917.8,10.47156507]
[1688196908702,0.93877,1918.2,1918.0,4.687]
[1688196908998,0.31291,1918.1,1918.0,4.9999]
[1688196909202,0.31291,1918.1,1918.0,10.25438412]
[1688196911811,0.31291,1918.1,1918.0,15.29128412]
[1688196912109,0.31291,1918.1,1918.0,10.60428412]
[1688196916107,0.38760085,1918.1,1918.0,10.60428412]
[1688196921218,0.38760085,1918.1,1918.0,15.29128412]
[1688196921415,0.31291,1918.1,1918.0,15.29128412]
[1688196921611,0.4120044,1918.1,1918.0,15.29128412]
[1688196922518,0.4119944,1918.1,1918.0,15.29128412]
[1688196923121,0.4119944,1918.1,1918.0,18.92473667]
[1688196927423,0.4119944,1918.1,1918.0,15.71693667]
[1688196931526,0.69871075,1918.1,1918.0,10.46245255]
[1688196932429,0.70536373,1918.1,1918.0,10.46245255]
[1688196933331,0.41864738,1918.1,1918.0,10.46245255]
[1688196936627,0.00665298,1918.1,1918.0,10.46245255]
[1688196936829,0.31955298,1918.1,1918.0,10.46245255]
[1688196937532,0.42188026,1918.1,1918.0,10.46245255]
[1688196938527,0.42188026,1918.1,1918.0,15.12645255]
[1688196938734,0.10898026,1918.1,1918.0,15.12645255]
[1688196938934,0.10898026,1918.1,1918.0,18.33425255]
[1688196940730,0.42188026,1918.1,1918.0,18.33425255]
[1688196941836,0.10898026,1918.1,1918.0,18.33425255]
[1688196946237,0.10898026,1918.1,1918.0,15.12645255]
[1688196946736,0.42188026,1918.1,1918.0,15.12645255]
[1688196949540,0.10898026,1918.1,1918.0,15.12645255]
[1688196950336,0.10898026,1918.1,1918.0,18.33425255]
[1688196957543,0.00665298,1918.1,1918.0,18.33425255]
[1688196958147,0.10778206,1918.1,1918.0,18.33425255]
[1688196962860,0.39449841,1918.1,1918.0,18.33425255]
[1688196963051,0.70739841,1918.1,1918.0,18.33425255]
[1688196964057,0.42068206,1918.1,1918.0,18.33425255]
[1688196965859,0.10778206,1918.1,1918.0,18.33425255]
[1688196966762,0.42068206,1918.1,1918.0,18.33425255]
[1688196967959,0.10778206,1918.1,1918.0,18.33425255]
[1688196976467,0.3129,1918.3,1918.1,0.56748412]
[1688196976672,0.3129,1918.3,1918.2,4.99989]